bitfinex-derivatives/quotes_BTCF0:USTF0_20240820
["timestamp","ask_amount","ask_price","bid_price","bid_amount"]
[1724163877884,0.066551,60084.0,60081.0,0.04979967]
[1724163877885,0.133104,60083.0,60081.0,0.04979967]
[1724163878376,3.553104,60083.0,60080.0,0.04979967]
[1724163879479,4.452424,60083.0,60080.0,0.04979967]
[1724163879678,4.56818637,60083.0,60079.0,0.04979967]
[1724163879877,4.518976,60083.0,60076.0,0.04979967]
[1724163880277,4.518976,60083.0,60078.0,0.41059967]
[1724163880278,4.16816454,60083.0,60078.0,0.41059967]
[1724163880478,3.555104,60083.0,60078.0,0.41059967]
[1724163880686,3.555104,60083.0,60080.0,0.04979967]
[1724163881483,3.60429254,60083.0,60080.0,0.04979967]
[1724163881681,3.555104,60083.0,60080.0,0.04979967]
[1724163881881,3.488552,60083.0,60080.0,0.04979967]
[1724163882076,3.422,60083.0,60081.0,0.04979967]
[1724163882277,3.422,60083.0,60082.0,0.06680259]
[1724163882485,3.488552,60083.0,60082.0,0.13319842]
[1724163882984,3.488552,60083.0,60082.0,0.14401697]
[1724163883287,3.488552,60083.0,60082.0,0.00024959]
[1724163883288,3.621656,60083.0,60082.0,0.00024959]
[1724163883684,3.67084454,60083.0,60082.0,0.00024959]
[1724163884490,3.621656,60083.0,60082.0,0.00024959]
[1724163884784,3.60429254,60083.0,60082.0,0.05005478]
[1724163885186,3.488552,60083.0,60082.0,0.05005478]
[1724163885382,0.066548,60087.0,60082.0,0.00024959]
[1724163885577,0.066548,60087.0,60086.0,0.3608]
[1724163885783,0.06679459,60090.0,60089.0,0.066545]
[1724163886089,0.06679459,60090.0,60089.0,0.12482746]
[1724163886688,0.06679459,60090.0,60089.0,0.11633609]
[1724163887287,0.06679459,60090.0,60089.0,0.12713929]
[1724163888293,0.00124959,60090.0,60089.0,0.08683957]
[1724163888891,0.00124959,60090.0,60089.0,0.08783957]
[1724163889693,0.00124959,60090.0,60089.0,0.15423281]
[1724163889885,0.00124959,60090.0,60089.0,0.08783957]
[1724163890081,0.00124959,60090.0,60089.0,0.44863957]
[1724163890583,0.06779359,60090.0,60089.0,0.3736032]
[1724163891005,3.48779359,60090.0,60089.0,0.3736032]
[1724163891590,3.48779359,60090.0,60089.0,0.002]
[1724163891591,3.55433759,60090.0,60089.0,0.002]
[1724163891795,0.133098,60086.0,60085.0,0.04978673]
[1724163891987,0.133098,60086.0,60082.0,0.06663173]
[1724163891988,0.066551,60084.0,60083.0,0.04978673]
[1724163892182,0.133102,60084.0,60083.0,0.04978673]
[1724163892389,0.133104,60083.0,60082.0,0.05003632]
[1724163892896,1.393224,60083.0,60082.0,0.00024959]
[1724163893796,4.813224,60083.0,60082.0,0.00024959]
[1724163894493,0.06656,60076.0,60075.0,0.04978673]
[1724163894800,0.066563,60073.0,60068.0,0.04978673]
[1724163894994,0.066568,60069.0,60066.0,0.42159279]
[1724163895301,3.42,60068.0,60065.0,0.01077212]
[1724163895507,3.42,60068.0,60065.0,0.3608]
[1724163895695,0.066571,60066.0,60065.0,0.41058673]
[1724163895896,0.066571,60066.0,60065.0,0.3608]
[1724163896092,0.066571,60066.0,60065.0,0.41056757]
[1724163896495,0.066571,60066.0,60065.0,0.3618]
[1724163896802,0.066571,60066.0,60065.0,0.41156757]
[1724163897003,0.066571,60066.0,60065.0,0.001]
[1724163897300,0.066571,60066.0,60065.0,0.3608]
[1724163897492,0.066571,60066.0,60065.0,0.001]
[1724163898095,0.066571,60066.0,60065.0,0.3638]
[1724163898692,0.632582,60066.0,60065.0,0.003]
[1724163898892,1.032582,60066.0,60065.0,0.003]
[1724163899094,1.033582,60066.0,60065.0,0.002]
[1724163899291,0.066578,60060.0,60059.0,0.0110689]
[1724163899492,0.066578,60060.0,60058.0,0.3608]
[1724163899707,0.066572,60065.0,60063.0,0.066574]
[1724163899900,0.066572,60065.0,60064.0,0.3608]
[1724163901903,0.066572,60065.0,60058.0,0.42431639]
[1724163901904,0.001,60066.0,60058.0,0.37454882]
[1724163902203,0.560537,60059.0,60058.0,0.003]
[1724163902509,0.066586,60052.0,60051.0,0.066587]
[1724163902802,0.0491528,60064.0,60049.0,0.3608]
[1724163903004,0.3628,60065.0,60060.0,0.066576]
[1724163903005,0.066577,60061.0,60060.0,0.066576]
[1724163903216,0.066579,60059.0,60058.0,0.43438]
[1724163904010,0.066579,60059.0,60058.0,0.42738]
[1724163904896,3.42088,60061.0,60060.0,0.133156]
[1724163904897,0.00088,60061.0,60060.0,0.133156]
[1724163905100,0.00024959,60067.0,60066.0,0.066571]
[1724163905295,0.00024959,60067.0,60066.0,0.427371]
[1724163906205,0.06681959,60067.0,60066.0,0.3608]
[1724163906409,0.13538959,60067.0,60066.0,0.3618]
[1724163906803,0.13538959,60067.0,60066.0,0.37257812]
[1724163906804,0.06881959,60067.0,60066.0,0.37257812]
[1724163907311,0.13538959,60067.0,60066.0,0.3658]
[1724163907703,1.03482959,60067.0,60066.0,0.3658]
[1724163908012,4.45482959,60067.0,60066.0,0.3658]
[1724163908200,4.57432959,60067.0,60066.0,0.3658]
[1724163909003,4.57632959,60067.0,60066.0,0.3618]
[1724163909197,4.57432959,60067.0,60066.0,0.3658]
[1724163909409,4.57432959,60067.0,60066.0,0.005]
[1724163909806,4.57432959,60067.0,60066.0,0.006]
[1724163910014,5.18009959,60067.0,60066.0,0.001]
[1724163910306,0.066585,60053.0,60052.0,0.3608]
[1724163910506,0.066585,60053.0,60052.0,0.43853221]
[1724163911002,0.066585,60053.0,60052.0,0.37194621]
[1724163911506,0.066578,60060.0,60055.0,0.066582]
[1724163912104,0.066585,60053.0,60052.0,0.37194621]
[1724163912299,0.066585,60053.0,60052.0,0.3608]
[1724163912712,3.486585,60053.0,60052.0,0.3608]
[1724163913514,3.486585,60053.0,60052.0,0.3628]
[1724163913707,3.486585,60053.0,60052.0,0.002]
[1724163913898,3.55317,60053.0,60052.0,0.002]
[1724163914105,0.06659,60049.0,60048.0,0.00018989]
[1724163914306,0.13318,60049.0,60048.0,0.00018989]
[1724163914601,0.63278,60049.0,60048.0,0.00018989]
[1724163915004,4.05278,60049.0,60048.0,0.00018989]
[1724163918116,0.06678325,60015.0,60014.0,0.3608]
[1724163918610,3.48678325,60015.0,60014.0,0.3608]
[1724163919727,3.48678325,60015.0,60009.0,0.00014728]
[1724163919728,3.78095525,60015.0,60009.0,0.00014728]
[1724163919909,0.066633,60010.0,60009.0,0.00014728]
[1724163920415,3.42015525,60015.0,60009.0,0.00014728]
[1724163920717,0.06663,60013.0,60012.0,0.3608]
[1724163922921,0.06663,60013.0,60012.0,0.008]
[1724163923115,1.03314,60013.0,60012.0,0.008]
[1724163923519,1.03314,60013.0,60012.0,0.004]
[1724163923716,1.04214,60013.0,60012.0,0.001]
[1724163924223,0.199899,60010.0,60009.0,2.8e-07]
[1724163924414,1.599819,60010.0,60009.0,2.8e-07]
[1724163924720,1.999819,60010.0,60009.0,2.8e-07]
[1724163924922,5.589819,60010.0,60009.0,2.8e-07]
[1724163925425,5.419819,60010.0,60009.0,2.8e-07]
[1724163926128,0.066652,59993.0,59992.0,0.3608]
[1724163926810,3.486652,59993.0,59992.0,0.3608]
[1724163927007,3.48685053,59993.0,59992.0,0.3608]
[1724163927517,3.48685053,59993.0,59992.0,0.3648]
[1724163928009,3.48685053,59993.0,59992.0,0.3688]
[1724163928535,3.48685053,59993.0,59992.0,0.435453]
[1724163929420,3.48685053,59993.0,59992.0,0.3688]
[1724163930112,3.55350253,59993.0,59992.0,0.3688]
[1724163931218,3.48685053,59993.0,59992.0,0.3688]
[1724163931514,3.55350253,59993.0,59992.0,0.3688]
[1724163931912,3.48685053,59993.0,59992.0,0.3688]
[1724163932114,3.55350253,59993.0,59992.0,0.3688]
[1724163932314,3.55350253,59993.0,59992.0,0.008]
[1724163932513,3.48685053,59993.0,59992.0,0.008]
[1724163932921,3.55350253,59993.0,59992.0,0.008]
[1724163933322,3.62015453,59993.0,59992.0,0.008]
[1724163933521,0.133326,59983.0,59982.0,0.4829]
[1724163933729,3.42103853,59993.0,59982.0,0.4829]
[1724163934029,0.066663,59983.0,59982.0,0.4829]
[1724163934922,0.066663,59983.0,59982.0,0.4969]
[1724163936129,0.066663,59983.0,59982.0,0.5059]
[1724163936823,0.067663,59983.0,59982.0,0.5019]
[1724163937230,0.067663,59983.0,59982.0,0.568564]
[1724163937420,0.001,59983.0,59982.0,0.57953266]
[1724163938435,0.067663,59983.0,59982.0,0.57953266]
[1724163938626,0.067663,59983.0,59982.0,0.51286866]
[1724163939123,0.067663,59983.0,59982.0,0.57953266]
[1724163939425,0.134326,59983.0,59982.0,0.51286866]
[1724163939631,0.067663,59983.0,59982.0,0.51286866]
[1724163940230,0.067663,59983.0,59982.0,0.5019]
[1724163940231,0.134326,59983.0,59982.0,0.5019]
[1724163940627,0.067663,59983.0,59982.0,0.5019]
[1724163940829,0.067663,59983.0,59982.0,0.568564]
[1724163941036,0.001,59983.0,59982.0,0.568564]
[1724163941329,3.42019853,59993.0,59982.0,1.40206]
[1724163941530,3.42103853,59993.0,59992.0,0.3608]
[1724163941831,3.42019853,59993.0,59992.0,0.3608]
[1724163942026,3.48685153,59993.0,59992.0,0.3608]
[1724163942531,3.55350453,59993.0,59992.0,0.3608]
[1724163942729,3.48785153,59993.0,59992.0,0.3608]
[1724163943032,3.55450453,59993.0,59992.0,0.3608]
[1724163943223,3.98670453,59993.0,59992.0,0.3608]
[1724163943424,3.98670453,59993.0,59992.0,0.003]
[1724163943425,5.12243453,59993.0,59992.0,0.003]
[1724163944133,5.12343453,59993.0,59992.0,0.003]
[1724163944835,5.12243453,59993.0,59992.0,0.007]
[1724163945330,5.13341642,59993.0,59992.0,0.007]
[1724163945834,0.133326,59983.0,59982.0,0.53266757]
[1724163946022,0.133326,59983.0,59982.0,0.4829]
[1724163946430,0.066667,59979.0,59976.0,0.04976757]
[1724163946728,4.68113559,59983.0,59971.0,0.04976757]
[1724163946729,0.13335,59972.0,59971.0,0.04976757]
[1724163947026,0.066679,59969.0,59968.0,0.04976757]
[1724163947232,0.06668,59968.0,59966.0,0.3609701]
[1724163947423,0.133362,59967.0,59966.0,0.3609701]
[1724163947830,3.553362,59967.0,59966.0,0.3609701]
[1724163948129,3.486681,59967.0,59966.0,0.3609701]
[1724163949035,3.48686726,59967.0,59966.0,0.3609701]
[1724163950029,3.91906726,59967.0,59966.0,0.3609701]
[1724163950526,3.91906726,59967.0,59966.0,0.3799701]
[1724163950527,3.92106726,59967.0,59966.0,0.3799701]
[1724163951134,4.48802826,59967.0,59966.0,0.0191701]
[1724163951727,3.98774826,59967.0,59966.0,0.0191701]
[1724163953436,3.98774826,59967.0,59966.0,0.0171701]
[1724163953637,0.06886726,59967.0,59966.0,0.0171701]
[1724163953831,0.06886726,59967.0,59966.0,0.06590532]
[1724163954229,0.06886726,59967.0,59966.0,0.05490532]
[1724163954230,0.07086726,59967.0,59966.0,0.05490532]
[1724163954426,0.07286726,59967.0,59966.0,0.0001701]
[1724163954634,3.37286726,59967.0,59966.0,0.04990532]
[1724163954831,3.43954826,59967.0,59966.0,0.0001701]
[1724163955030,3.43354826,59967.0,59966.0,0.0071701]
[1724163955232,4.76130926,59967.0,59966.0,0.0071701]
[1724163955432,0.066689,59961.0,59954.0,0.04973522]
[1724163955627,0.066689,59961.0,59953.0,0.04973522]
[1724163955628,0.4322,59955.0,59953.0,0.04973522]
[1724163955830,0.066698,59952.0,59950.0,0.04973522]
[1724163956036,0.066698,59952.0,59951.0,0.04974649]
[1724163956433,0.0667,59950.0,59949.0,0.53594649]
[1724163956634,0.06687256,59950.0,59949.0,0.4862]
[1724163957029,3.36687256,59950.0,59949.0,0.3608]
[1724163957236,3.36687256,59950.0,59938.0,0.04971812]
[1724163957237,0.066704,59947.0,59938.0,0.04971812]
[1724163957636,0.066704,59947.0,59942.0,0.066708]
[1724163958141,0.066704,59946.0,59943.0,0.066707]
[1724163958838,0.066704,59946.0,59943.0,0.189307]
[1724163959236,0.001,59947.0,59946.0,0.066704]
[1724163959942,0.002,59947.0,59946.0,0.066704]
[1724163960240,0.001,59947.0,59946.0,0.066704]
[1724163960641,0.001,59947.0,59944.0,0.6004]
[1724163960642,0.066705,59945.0,59944.0,0.6004]
[1724163960836,0.066705,59945.0,59944.0,0.3608]
[1724163961036,0.066706,59944.0,59943.0,0.1226]
[1724163962043,0.06671,59942.0,59937.0,0.3608]
[1724163962341,0.06671,59942.0,59941.0,0.06671]
[1724163962547,0.066713,59938.0,59937.0,0.427514]
[1724163962842,0.4322,59939.0,59934.0,0.11643512]
[1724163963040,0.06672,59932.0,59931.0,0.3715589]
[1724163963531,3.36672,59932.0,59931.0,0.3715589]
[1724163963938,3.43344,59932.0,59931.0,0.3715589]
[1724163964133,0.066725,59927.0,59926.0,0.0001497]
[1724163964334,0.56116364,59927.0,59926.0,0.0001497]
[1724163964538,2.00266364,59927.0,59926.0,7e-07]
[1724163964741,5.47266364,59927.0,59926.0,7e-07]
[1724163965343,0.06675,59905.0,59904.0,0.3608]
[1724163965547,0.5409,59906.0,59904.0,0.3608]
[1724163965732,0.3608,59910.0,59904.0,0.3608]
[1724163965935,0.5409,59920.0,59904.0,0.3608]
[1724163965936,0.5409,59920.0,59909.0,0.3608]
[1724163966137,0.5409,59920.0,59917.0,0.3608]
[1724163966341,0.0001308,59919.0,59917.0,0.3608]
[1724163966536,0.6608108,59919.0,59917.0,0.3608]
[1724163966737,0.50068,59918.0,59917.0,0.3608]
[1724163967339,4.34068,59918.0,59895.0,0.3608]
[1724163967537,0.066749,59906.0,59895.0,0.3608]
[1724163967833,0.5409,59901.0,59895.0,0.3608]
[1724163968038,0.5409,59901.0,59900.0,0.3608]
[1724163968952,0.00020467,59905.0,59900.0,0.86164]
[1724163969137,0.00020467,59905.0,59904.0,0.3608]
[1724163969336,0.00020467,59905.0,59904.0,0.7608]
[1724163969532,0.001,59920.0,59904.0,0.8616]
[1724163969741,0.001,59906.0,59904.0,0.3608]
[1724163970047,0.001,59906.0,59904.0,0.7216]
[1724163970435,0.00012427,59905.0,59904.0,0.7216]
[1724163970637,0.00112427,59905.0,59904.0,0.7346]
[1724163971044,3.30112427,59905.0,59904.0,0.7346]
[1724163971242,3.80192427,59905.0,59904.0,0.013]
[1724163971445,3.30012427,59905.0,59904.0,0.013]
[1724163971745,4.26767427,59905.0,59904.0,0.013]
[1724163971939,3.30012427,59905.0,59904.0,0.013]
[1724163972947,3.36687427,59905.0,59904.0,0.013]
[1724163973142,3.90777427,59905.0,59901.0,0.3608]
[1724163973352,3.30112427,59905.0,59904.0,0.013]
[1724163973553,3.30212427,59905.0,59904.0,0.3738]
[1724163973847,3.90977427,59905.0,59904.0,0.3738]
[1724163974045,3.84302427,59905.0,59904.0,0.3738]
[1724163974252,3.30212427,59905.0,59904.0,0.3738]
[1724163974462,0.00025024,59917.0,59904.0,0.3738]
[1724163974747,0.00025024,59917.0,59916.0,0.3608]
[1724163974943,3.30025024,59917.0,59916.0,0.3608]
[1724163975346,3.30025024,59917.0,59916.0,1.689018]
[1724163975551,0.066715,59936.0,59918.0,0.066735]
[1724163975750,0.066721,59931.0,59930.0,0.3608]
[1724163976051,0.066716,59936.0,59930.0,0.3608]
[1724163976249,0.066702,59948.0,59935.0,0.3608]
[1724163976447,0.3608,59955.0,59945.0,0.3608]
[1724163976645,3.1,59947.0,59945.0,0.3608]
[1724163978156,0.066704,59946.0,59945.0,0.3608]
[1724163979748,1.127144,59946.0,59945.0,0.3608]
[1724163979939,1.127144,59946.0,59940.0,0.00025024]
[1724163979940,0.06671,59941.0,59940.0,0.00025024]
[1724163980546,3.16671,59941.0,59940.0,0.36105024]
[1724163981067,3.16671,59941.0,59940.0,0.00025024]
[1724163981354,4.23482451,59941.0,59940.0,7.022e-05]
[1724163981548,4.70153451,59941.0,59940.0,2.2e-07]
[1724163981748,3.59434451,59941.0,59940.0,2.2e-07]
[1724163981943,3.16683451,59941.0,59940.0,2.2e-07]
[1724163983254,3.16683451,59941.0,59940.0,0.36080022]
[1724163983645,3.23454451,59941.0,59940.0,0.36180022]
[1724163983846,3.59534451,59941.0,59940.0,0.00100022]
[1724163984247,3.66205451,59941.0,59940.0,0.00100022]
[1724163984447,3.66105451,59941.0,59940.0,2.2e-07]
[1724163984750,3.67005451,59941.0,59940.0,2.2e-07]
[1724163985442,3.67005451,59941.0,59940.0,0.00100022]
[1724163985642,4.71053451,59941.0,59940.0,0.001]
[1724163985856,5.07133451,59941.0,59940.0,2.2e-07]
[1724163986456,5.00462451,59941.0,59940.0,2.2e-07]
[1724163986754,3.60334451,59941.0,59940.0,2.2e-07]
[1724163987949,3.67005451,59941.0,59940.0,2.2e-07]
[1724163990852,4.57053451,59941.0,59940.0,2.2e-07]
[1724163991051,4.57053451,59941.0,59920.0,0.3608]
[1724163991052,0.133464,59921.0,59920.0,0.3608]
[1724163991255,0.13360967,59921.0,59920.0,0.3608]
[1724163991648,3.30034167,59921.0,59920.0,0.3608]
[1724163991850,3.30034167,59921.0,59908.0,0.3608]
[1724163991851,4.90252567,59921.0,59908.0,0.3608]
[1724163992146,0.066745,59909.0,59908.0,0.3608]
[1724163992857,0.06675,59905.0,59903.0,0.3608]
[1724163993055,3.16675,59905.0,59903.0,0.3608]
[1724163993866,0.133502,59904.0,59903.0,0.3608]
[1724163994250,0.035214,59898.0,59897.0,0.3608]
[1724163994559,3.1,59898.0,59897.0,0.3608]
[1724163994856,3.1,59898.0,59890.0,0.3608]
[1724163994857,0.133522,59895.0,59890.0,0.3608]
[1724163995255,0.133522,59895.0,59884.0,0.3608]
[1724163995256,1.194402,59895.0,59894.0,5.9e-07]
[1724163995757,4.294402,59895.0,59894.0,5.9e-07]
[1724163996146,4.28713045,59895.0,59878.0,0.3608]
[1724163996456,4.28713045,59895.0,59871.0,0.3608]
[1724163996457,0.066787,59872.0,59871.0,0.3608]
[1724163996656,0.066787,59872.0,59862.0,0.1265]
[1724163996657,0.427587,59872.0,59862.0,0.1265]
[1724163996861,0.3608,59867.0,59862.0,0.1265]
[1724163997055,0.066797,59863.0,59856.0,0.066804]
[1724163997250,0.066797,59863.0,59857.0,0.3608]
[1724163997754,0.00017137,59866.0,59857.0,0.3608]
[1724163997959,0.066802,59858.0,59857.0,0.3608]
[1724163998256,0.5409,59858.0,59857.0,0.3608]
[1724163998560,0.607702,59858.0,59857.0,0.3608]
[1724163999063,3.707702,59858.0,59857.0,0.3608]
[1724163999554,3.858702,59858.0,59857.0,0.3608]
[1724163999758,3.708702,59858.0,59857.0,0.3608]
[1724164000655,0.066808,59853.0,59852.0,0.3608]
[1724164001144,0.00117137,59866.0,59852.0,0.7216]
[1724164001346,0.5409,59858.0,59852.0,0.7216]
[1724164001560,0.5419,59858.0,59856.0,0.3608]
[1724164001862,0.066803,59857.0,59856.0,0.3608]
[1724164002654,3.166803,59857.0,59856.0,0.3608]
[1724164003362,3.167803,59857.0,59856.0,0.3608]
[1724164004054,0.002,59857.0,59856.0,0.3748]
[1724164004257,0.068803,59857.0,59856.0,0.3748]
[1724164005157,3.118803,59857.0,59856.0,0.014]
[1724164006460,3.118803,59857.0,59856.0,0.3748]
[1724164006650,3.118803,59857.0,59856.0,0.014]
[1724164007163,3.118803,59857.0,59856.0,0.013]
[1724164007956,3.118803,59857.0,59856.0,1.341805]
[1724164007957,3.052,59857.0,59856.0,1.341805]
[1724164008160,3.051,59857.0,59856.0,1.341805]
[1724164008353,3.052,59857.0,59856.0,0.841605]
[1724164008557,3.052,59857.0,59856.0,1.342805]
[1724164009566,0.5409,59864.0,59862.0,0.066797]
[1724164009873,0.066783,59876.0,59865.0,0.066794]
[1724164010058,0.9017,59878.0,59865.0,0.4]
[1724164010257,0.066785,59874.0,59871.0,0.066787]
[1724164010460,0.066785,59874.0,59872.0,0.1297]
[1724164010668,3.05,59873.0,59872.0,0.697567]
[1724164010862,3.05,59873.0,59872.0,0.196487]
[1724164011078,0.066775,59883.0,59872.0,1.03078]
[1724164011262,0.06691086,59882.0,59880.0,0.3608]
[1724164011463,0.00013486,59882.0,59881.0,0.066777]
[1724164011671,0.5409,59891.0,59881.0,0.501]
[1724164011672,0.066772,59886.0,59881.0,0.501]
[1724164011973,0.9017,59905.0,59885.0,0.3608]
[1724164012267,0.06677,59887.0,59885.0,0.3608]
[1724164012660,2.46,59886.0,59885.0,0.3608]
[1724164013066,2.461,59886.0,59885.0,0.3608]
[1724164013969,2.462,59886.0,59885.0,1.328532]
[1724164014467,0.3608,59900.0,59885.0,1.328532]
[1724164014468,0.427555,59900.0,59886.0,0.50092]
[1724164014666,0.066755,59900.0,59898.0,0.3608]
[1724164015057,0.066757,59899.0,59898.0,0.3608]
[1724164015257,2.336757,59899.0,59898.0,0.3608]
[1724164015460,2.27,59899.0,59898.0,0.86164]
[1724164015657,2.27,59899.0,59898.0,1.26164]
[1724164015864,2.336757,59899.0,59898.0,0.3608]
[1724164016373,2.336757,59899.0,59898.0,0.86164]
[1724164016666,2.27,59899.0,59898.0,1.26164]
[1724164017065,2.27,59899.0,59898.0,1.328398]
[1724164017465,2.336757,59899.0,59898.0,1.26564]
[1724164017761,2.764314,59899.0,59898.0,0.004]
[1724164017959,0.066762,59894.0,59893.0,0.00025045]
[1724164018858,0.002,59899.0,59894.0,0.066762]
[1724164019063,2.27,59895.0,59893.0,0.76313045]
[1724164019367,2.27,59895.0,59893.0,0.36505045]
[1724164019573,2.27,59895.0,59894.0,0.50088]
[1724164019869,2.27,59895.0,59894.0,0.967642]
[1724164020769,2.336761,59895.0,59894.0,0.50088]
[1724164021070,0.066762,59894.0,59893.0,0.36905045]
[1724164021571,2.27088,59895.0,59894.0,0.066762]
[1724164021572,2.27188,59895.0,59894.0,0.066762]
[1724164021771,2.27188,59895.0,59894.0,0.970642]
[1724164021772,2.271,59895.0,59894.0,0.970642]
[1724164022165,2.337761,59895.0,59894.0,0.570642]
[1724164022362,2.337761,59895.0,59894.0,0.567642]
[1724164022563,2.337761,59895.0,59893.0,0.37105045]
[1724164022564,0.066762,59894.0,59893.0,0.37105045]
[1724164022862,0.133524,59894.0,59893.0,0.01025045]
[1724164023263,2.404524,59894.0,59893.0,0.01925045]
[1724164023460,0.066768,59889.0,59878.0,0.04971812]
[1724164023663,0.3608,59881.0,59870.0,0.04971812]
[1724164023865,0.3608,59881.0,59869.0,0.3608]
[1724164024066,0.066789,59871.0,59869.0,0.3608]
[1724164024270,0.066772,59886.0,59869.0,0.3608]
[1724164024271,0.066772,59886.0,59875.0,0.066783]
[1724164024573,0.06678,59878.0,59877.0,0.3608]
[1724164025069,0.06678,59878.0,59875.0,0.06703345]
[1724164025070,0.066782,59876.0,59875.0,0.00025045]
[1724164025272,0.133564,59876.0,59875.0,0.00025045]
[1724164025659,0.066793,59866.0,59865.0,0.3608]
[1724164025867,2.27,59866.0,59865.0,0.3608]
[1724164026066,2.27,59866.0,59865.0,1.689514]
[1724164027177,2.271,59866.0,59865.0,1.86028081]
[1724164027365,2.271,59866.0,59865.0,1.70028081]
[1724164027665,2.271,59866.0,59865.0,1.76707481]
[1724164027866,0.04881671,59909.0,59865.0,1.76707481]
[1724164027867,0.066767,59890.0,59887.0,0.06677]
[1724164028067,0.066759,59897.0,59884.0,0.3608]
[1724164028270,0.066771,59886.0,59884.0,0.3608]
[1724164028586,2.27,59889.0,59884.0,0.3608]
[1724164028873,2.27,59889.0,59885.0,0.3608]
[1724164029270,2.27,59889.0,59888.0,0.066769]
[1724164029877,2.27,59889.0,59885.0,0.3608]
[1724164030262,0.066771,59886.0,59885.0,0.3608]
[1724164030466,2.27,59889.0,59881.0,0.00025045]
[1724164030467,0.200328,59882.0,59881.0,4.5e-07]
[1724164030673,0.701328,59882.0,59881.0,4.5e-07]
[1724164030870,3.371328,59882.0,59881.0,4.5e-07]
[1724164031088,2.470328,59882.0,59881.0,4.5e-07]
[1724164031978,2.470328,59882.0,59881.0,0.00100045]
[1724164031979,2.409552,59882.0,59881.0,0.00100045]
[1724164032672,2.348776,59882.0,59881.0,0.00100045]
[1724164034266,0.066786,59873.0,59872.0,0.3608]
[1724164034467,0.3608,59873.0,59867.0,0.06027363]
[1724164034669,0.3608,59873.0,59865.0,0.3608]
[1724164034866,0.066797,59863.0,59859.0,0.427601]
[1724164035376,0.066798,59862.0,59859.0,0.427601]
[1724164035680,0.00025045,59867.0,59857.0,0.41045886]
[1724164035865,0.066793,59866.0,59865.0,0.004]
[1724164036465,0.00025045,59867.0,59865.0,0.3608]
[1724164036665,0.00025045,59867.0,59866.0,0.066793]
[1724164037078,0.066778,59880.0,59866.0,0.86192]
[1724164037276,0.06679,59870.0,59866.0,0.3608]
[1724164037476,0.3608,59874.0,59866.0,0.3608]
[1724164037777,0.001,59867.0,59866.0,0.427593]
[1724164038177,0.001,59867.0,59866.0,1.328713]
[1724164038385,0.00025045,59872.0,59866.0,1.328713]
[1724164038386,0.00025045,59872.0,59866.0,1.26192]
[1724164038572,0.001,59870.0,59866.0,0.3648]
[1724164039082,0.001,59870.0,59867.0,0.50112]
[1724164039269,0.001,59870.0,59869.0,0.06679]
[1724164039472,0.001,59870.0,59869.0,0.56787]
[1724164039878,0.067789,59870.0,59869.0,0.56787]
[1724164040073,0.066789,59870.0,59869.0,0.56787]
[1724164040275,0.066791,59868.0,59867.0,0.004]
[1724164041177,0.066791,59868.0,59867.0,0.971912]
[1724164041927,0.06703745,59872.0,59870.0,0.066788]
[1724164041940,0.06703745,59872.0,59871.0,0.41059747]
[1724164041946,0.06703745,59872.0,59871.0,0.3608]
[1724164042137,0.067789,59870.0,59869.0,0.004]
[1724164042471,0.067789,59870.0,59869.0,0.50508]
[1724164042676,0.067789,59870.0,59869.0,0.90508]
[1724164043108,0.067789,59870.0,59869.0,1.02166747]
[1724164043290,0.067789,59870.0,59869.0,1.01766747]
[1724164043480,0.066789,59870.0,59869.0,0.96787]
[1724164043681,0.066789,59870.0,59869.0,1.01766747]
[1724164044482,0.067789,59870.0,59869.0,1.02366747]
[1724164044874,0.001,59870.0,59869.0,1.38446747]
[1724164045077,0.001,59870.0,59869.0,1.33467]
[1724164045283,0.002,59870.0,59869.0,0.94067]
[1724164045782,0.002,59870.0,59869.0,0.43959]
[1724164045971,0.068789,59870.0,59869.0,0.3728]
[1724164046178,0.068789,59870.0,59861.0,0.00025045]
[1724164046179,0.133596,59862.0,59861.0,0.00025045]
[1724164046382,0.494396,59862.0,59861.0,0.00025045]
[1724164046584,2.274396,59862.0,59861.0,0.00025045]
[1724164046978,0.066805,59856.0,59855.0,0.04981364]
[1724164047188,0.066805,59856.0,59851.0,0.06681]
[1724164047189,0.3608,59856.0,59851.0,0.11662364]
[1724164047378,0.3608,59856.0,59850.0,0.066811]
[1724164047379,0.066811,59851.0,59850.0,0.066811]
[1724164048084,0.36105045,59856.0,59850.0,0.50124]
[1724164048283,0.36105045,59856.0,59851.0,0.3608]
[1724164048490,0.36205045,59856.0,59855.0,0.072806]
[1724164048685,0.00125045,59856.0,59855.0,0.072806]
[1724164049300,0.00125045,59856.0,59855.0,0.974006]
[1724164049496,0.00125045,59856.0,59855.0,1.04042422]
[1724164049701,0.00225045,59856.0,59855.0,1.040812]
[1724164049998,0.066794,59866.0,59856.0,0.5012]
[1724164050183,0.066794,59866.0,59865.0,0.11664559]
[1724164050794,0.066794,59866.0,59865.0,0.066794]
[1724164050990,1.69,59866.0,59862.0,0.04985159]
[1724164051290,0.3608,59863.0,59860.0,0.00025045]
[1724164051493,0.066799,59861.0,59860.0,0.00025045]
[1724164052386,0.066795,59865.0,59860.0,0.00025045]
[1724164052576,0.066795,59865.0,59864.0,0.11670008]
[1724164053086,0.066795,59865.0,59864.0,0.066796]
[1724164053684,0.066796,59864.0,59863.0,0.04991708]
[1724164053981,0.066799,59861.0,59860.0,0.00225045]
[1724164054186,0.066799,59861.0,59860.0,0.11896522]
[1724164054382,0.066799,59861.0,59860.0,0.00225045]
[1724164054596,0.066799,59861.0,59860.0,0.06705045]
[1724164054781,1.69,59866.0,59864.0,0.066796]
[1724164054782,0.068795,59865.0,59864.0,0.066796]
[1724164054978,0.002,59865.0,59864.0,0.066796]
[1724164055497,1.69096001,59866.0,59865.0,0.066794]
[1724164055680,1.69,59866.0,59865.0,0.427594]
[1724164055884,1.69,59866.0,59865.0,0.49406279]
[1724164056292,1.69,59866.0,59865.0,0.49413723]